fUSD/lending_fUSD_20251006
["ID","MTS","AMOUNT","RATE_DAILY","PERIOD"]
[389571169,1759722652410,-296.682172,0.00015,2]
[389571171,1759722652420,-323.108886,0.00015,2]
[389571173,1759722652429,-323.108886,0.00015,2]
[389571175,1759722652438,-323.108886,0.00015,2]
[389571177,1759722652447,-323.108886,0.00015,2]
[389571179,1759722652456,-323.108886,0.00015,2]
[389571181,1759722652465,-323.108886,0.00015,2]
[389571183,1759722652475,-323.108886,0.00015,2]
[389571185,1759722652484,-323.108886,0.00015,2]
[389571187,1759722652493,-323.108886,0.00015,2]
[389571189,1759722652501,-323.108886,0.00015,2]
[389571191,1759722652510,-323.108886,0.00015,2]
[389571192,1759722652520,-323.108886,0.00015,2]
[389571194,1759722652529,-151.0,0.00015,2]
[389571196,1759722652538,-323.108886,0.00015,2]
[389571198,1759722652547,-151.0,0.00015,2]
[389571200,1759722652556,-323.108886,0.00015,2]
[389571202,1759722652566,-151.0,0.00015,2]
[389571204,1759722652575,-151.0,0.00015,2]
[389571206,1759722652584,-151.0,0.00015,2]
[389571208,1759722652593,-151.0,0.00015,2]
[389571210,1759722652603,-151.0,0.00015,2]
[389571212,1759722652612,-151.0,0.00015,2]
[389571214,1759722652621,-288.359028,0.00015,2]
[389571216,1759722652631,-151.0,0.00015,2]
[389571218,1759722652640,-288.359028,0.00015,2]
[389571220,1759722652649,-185.384896,0.00015,2]
[389571222,1759722652658,-288.359028,0.00015,2]
[389571224,1759722652668,-288.359028,0.00015,2]
[389571226,1759722652677,-288.359028,0.00015,2]
[389571228,1759722652686,-288.359028,0.00015,2]
[389571230,1759722652695,-288.359028,0.00015,2]
[389571232,1759722652704,-288.359028,0.00015,2]
[389571234,1759722652713,-288.359028,0.00015,2]
[389571236,1759722652722,-288.359028,0.00015,2]
[389571238,1759722652731,-288.359028,0.00015,2]
[389571240,1759722652741,-151.0,0.00015,2]
[389571242,1759722652750,-288.359028,0.00015,2]
[389571244,1759722652759,-151.0,0.00015,2]
[389571246,1759722652769,-213.018823,0.00015,2]
[389571247,1759722652779,-288.359028,0.00015,2]
[389571249,1759722652788,-288.359028,0.00015,2]
[389571251,1759722652798,-288.359028,0.00015,2]
[389571253,1759722652808,-288.359028,0.00015,2]
[389571255,1759722652817,-214.400913,0.00015,2]
[389571256,1759722652826,-214.400913,0.00015,2]
[389571257,1759722652835,-214.400913,0.00015,2]
[389571258,1759722652844,-214.400913,0.00015,2]
[389571259,1759722652854,-151.0,0.00015,2]
[389571260,1759722652863,-214.400913,0.00015,2]
[389571261,1759722652872,-214.400913,0.00015,2]
[389571262,1759722652881,-214.400913,0.00015,2]
[389571263,1759722652891,-552.371452,0.00015,2]
[389571264,1759722652900,-151.0,0.00015,2]
[389571265,1759722652909,-214.400913,0.00015,2]
[389571266,1759722652919,-295.793903,0.00015,2]
[389571267,1759722652928,-552.371452,0.00015,2]
[389571268,1759722652937,-214.400913,0.00015,2]
[389571269,1759722652947,-552.371452,0.00015,2]
[389571270,1759722652956,-214.400913,0.00015,2]
[389571271,1759722652966,-552.371452,0.00015,2]
[389571272,1759722652975,-214.400913,0.00015,2]
[389571273,1759722652987,-214.400913,0.00015,2]
[389571275,1759722652997,-552.371452,0.00015,2]
[389571277,1759722653007,-214.400913,0.00015,2]
[389571279,1759722653016,-552.371452,0.00015,2]
[389571281,1759722653027,-214.400913,0.00015,2]
[389571283,1759722653037,-552.371452,0.00015,2]
[389571285,1759722653046,-214.400913,0.00015,2]
[389571287,1759722653056,-552.371452,0.00015,2]
[389571289,1759722653066,-214.400913,0.00015,2]
[389571291,1759722653075,-552.371452,0.00015,2]
[389571293,1759722653084,-552.371452,0.00015,2]
[389571295,1759722653093,-552.371452,0.00015,2]
[389571297,1759722653103,-552.371452,0.00015,2]
[389571299,1759722653112,-552.371452,0.00015,2]
[389571301,1759722653122,-552.371452,0.00015,2]
[389571303,1759722653132,-552.371452,0.00015,2]
[389571305,1759722653141,-552.371452,0.00015,2]
[389571307,1759722653150,-2070.32057571,0.0001503,2]
[389571309,1759722653159,-2415.374005,0.00015107,2]
[389571311,1759722653172,-335.0,0.00015127,2]
[389571313,1759722653183,-335.0,0.00015129,2]
[389571315,1759722653192,-189.45705251,0.00015132,2]
[389571317,1759722653201,-5305.0,0.00015137,2]
[389571319,1759722653211,-335.0,0.00015147,2]
[389571321,1759722653221,-2760.42743428,0.00015183,2]
[389571324,1759722653231,-253.85713347,0.00015188,2]
[389571326,1759722653240,-335.0,0.00015193,2]
[389571328,1759722653251,-1005.0,0.000152,2]
[389571330,1759722653261,-385.0,0.000152,2]
[389571332,1759722653270,-5305.0,0.00015247,2]
[389571334,1759722653280,-465.39,0.00015247,2]
[389571336,1759722653289,-151.0,0.00015247,2]
[389571338,1759722653299,-323.108886,0.00015247,2]
[389571340,1759722653309,-323.108886,0.00015247,2]
[389571342,1759722653319,-323.108886,0.00015247,2]
[389571344,1759722653328,-323.108881,0.00015247,2]
[389571346,1759722653338,-151.0,0.00015247,2]
[389571348,1759722653348,-151.0,0.00015247,2]
[389571350,1759722653358,-288.359028,0.00015247,2]
[389571352,1759722653368,-288.359028,0.00015247,2]
[389571354,1759722653378,-288.359028,0.00015247,2]
[389571356,1759722653388,-288.359027,0.00015247,2]
[389571359,1759722653398,-214.400913,0.00015247,2]
[389571361,1759722653408,-214.400913,0.00015247,2]
[389571362,1759722653418,-552.371452,0.00015247,2]
[389571365,1759722653428,-214.400913,0.00015247,2]
[389571367,1759722653438,-552.371452,0.00015247,2]
[389571369,1759722653447,-214.400913,0.00015247,2]
[389571371,1759722653457,-552.371452,0.00015247,2]
[389571373,1759722653466,-300.0,0.00015248,2]
[389571375,1759722653476,-3105.48086357,0.00015259,2]
[389571377,1759722653485,-167.816352,0.00015259,2]
[389571379,1759722653495,-167.816352,0.00015259,2]
[389571381,1759722653505,-218.253847,0.00015259,2]
[389571383,1759722653514,-167.816352,0.00015259,2]
[389571385,1759722653524,-151.0,0.00015259,2]
[389571387,1759722653533,-218.253847,0.00015259,2]
[389571389,1759722653543,-185.703429,0.00015259,2]
[389571391,1759722653553,-218.253847,0.00015259,2]
[389571393,1759722653562,-167.81635,0.00015259,2]
[389571395,1759722653572,-218.253845,0.00015259,2]
[389571397,1759722653582,-151.0,0.00015259,2]
[389571399,1759722653591,-151.0,0.00015259,2]
[389571401,1759722653600,-151.0,0.00015259,2]
[389571403,1759722653610,-151.0,0.00015259,2]
[389571405,1759722653620,-151.0,0.00015259,2]
[389571407,1759722653630,-151.0,0.00015259,2]
[389571409,1759722653640,-151.0,0.00015259,2]
[389571412,1759722653650,-151.0,0.00015259,2]
[389571414,1759722653659,-217.249905,0.00015259,2]
[389571416,1759722653670,-217.249905,0.00015259,2]
[389571418,1759722653679,-217.249905,0.00015259,2]
[389571420,1759722653688,-217.249913,0.00015259,2]
[389571422,1759722653698,-335.0,0.00015259,2]
[389571424,1759722653707,-500.0,0.00015273,2]
[389571426,1759722653716,-436.0,0.00015273,2]
[389571428,1759722653726,-201.43833459,0.00015273,2]
[389571430,1759722653736,-500.0,0.00015273,2]
[389571432,1759722653747,-150.0,0.00015273,2]
[389571434,1759722653757,-500.0,0.00015273,2]
[389571436,1759722653766,-507.0,0.00015273,2]
[389571438,1759722653776,-405.72377468,0.00015273,2]
[389571440,1759722653786,-699.0,0.00015273,2]
[389571442,1759722653798,-200.73214208,0.00015273,2]
[389571444,1759722653809,-661.0,0.00015273,2]
[389571446,1759722653819,-550.0,0.00015273,2]
[389571448,1759722653829,-206.52272136,0.00015273,2]
[389571450,1759722653839,-2288.0,0.00015273,2]
[389571452,1759722653849,-1227.0,0.00015273,2]
[389571454,1759722653859,-150.0,0.00015273,2]
[389571456,1759722653869,-150.0,0.00015273,2]
[389571458,1759722653878,-500.0,0.00015274,2]
[389571460,1759722653888,-851.41976,0.00015278,2]
[389571462,1759722653898,-851.41976,0.00015278,2]
[389571464,1759722653908,-851.41976,0.00015278,2]
[389571466,1759722653918,-851.419762,0.00015278,2]
[389571468,1759722653929,-1161.339077,0.00015278,2]
[389571470,1759722653939,-165.922715,0.00015278,2]
[389571472,1759722653948,-1161.339077,0.00015278,2]
[389571474,1759722653958,-165.922715,0.00015278,2]
[389571476,1759722653968,-1161.339077,0.00015278,2]
[389571478,1759722653977,-165.922715,0.00015278,2]
[389571480,1759722653992,-165.922716,0.00015278,2]
[389571482,1759722654002,-1161.339083,0.00015278,2]
[389571484,1759722654012,-194.217313,0.00015278,2]
[389571486,1759722654022,-151.0,0.00015278,2]
[389571489,1759722654033,-238.885355,0.00015278,2]
[389571491,1759722654042,-194.217313,0.00015278,2]
[389571493,1759722654052,-238.885355,0.00015278,2]
[389571495,1759722654062,-194.217313,0.00015278,2]
[389571497,1759722654076,-238.885355,0.00015278,2]
[389571499,1759722654086,-151.0,0.00015278,2]
[389571501,1759722654096,-194.217304,0.00015278,2]
[389571503,1759722654106,-238.885357,0.00015278,2]
[389571505,1759722654116,-161.434278,0.00015278,2]
[389571507,1759722654126,-161.434278,0.00015278,2]
[389571509,1759722654138,-161.434278,0.00015278,2]
[389571511,1759722654148,-151.0,0.00015278,2]
[389571513,1759722654159,-161.434269,0.00015278,2]
[389571515,1759722654168,-151.0,0.00015278,2]
[389571517,1759722654178,-319.245556,0.00015278,2]
[389571519,1759722654188,-319.245556,0.00015278,2]
[389571522,1759722654199,-319.245556,0.00015278,2]
[389571524,1759722654209,-319.245559,0.00015278,2]
[389571526,1759722654218,-500.0,0.00015278,2]
[389571528,1759722654228,-205.03383642,0.00015278,2]
[389571530,1759722654237,-166.66,0.00015279,2]
[389571532,1759722654248,-152.56,0.0001531,2]
[389571534,1759722654257,-335.0,0.00015327,2]
[389571536,1759722654267,-3450.53429285,0.00015336,2]
[389571538,1759722654277,-189.45705251,0.00015364,2]
[389571540,1759722654286,-294.0,0.0001537,2]
[389571542,1759722654295,-255.0,0.00015374,2]
[389571544,1759722654305,-335.0,0.00015381,2]
[389571546,1759722654315,-370.68887098,0.00015393,2]
[389571548,1759722654325,-151.0,0.00015398,2]
[389571550,1759722654335,-151.0,0.00015398,2]
[389571552,1759722654344,-151.0,0.00015398,2]
[389571554,1759722654354,-151.0,0.00015398,2]
[389571556,1759722654363,-151.0,0.00015398,2]
[389571558,1759722654376,-190.750158,0.00015398,2]
[389571560,1759722654386,-151.0,0.00015398,2]
[389571562,1759722654396,-151.0,0.00015398,2]
[389571565,1759722654406,-158.50130237,0.000154,2]
[389571567,1759722654416,-3795.58772214,0.00015412,2]
[389571569,1759722654426,-296.31,0.00015462,2]
[389571571,1759722654435,-253.85713347,0.00015475,2]
[389571573,1759722654444,-335.0,0.00015482,2]
[389571575,1759722654455,-4140.64115143,0.00015488,2]
[389571577,1759722654464,-598.20199635,0.00015521,2]
[389571579,1759722654473,-1000.0,0.00015521,2]
[389571581,1759722654482,-1000.0,0.00015521,2]
[389571583,1759722654492,-1000.0,0.00015521,2]
[389571585,1759722654503,-239.58424838,0.00015521,2]
[389571587,1759722654512,-1000.0,0.00015521,2]
[389571589,1759722654522,-500.0,0.00015521,2]
[389571591,1759722654532,-1000.0,0.00015521,2]
[389571593,1759722654541,-1002.75288695,0.00015521,2]
[389571595,1759722654550,-465.39,0.00015521,2]
[389571597,1759722654559,-151.0,0.00015521,2]
[389571599,1759722654569,-151.0,0.00015521,2]
[389571601,1759722654578,-151.0,0.00015521,2]
[389571603,1759722654587,-151.0,0.00015521,2]
[389571615,1759722654689,-151.0,0.00015521,2]
[389571617,1759722654699,-151.0,0.00015521,2]
[389571619,1759722654708,-151.0,0.00015521,2]
[389571621,1759722654717,-151.0,0.00015521,2]
[389571623,1759722654725,-151.0,0.00015521,2]
[389571625,1759722654735,-151.0,0.00015521,2]
[389571627,1759722654744,-151.0,0.00015521,2]
[389571629,1759722654753,-151.0,0.00015521,2]
[389571631,1759722654762,-151.0,0.00015521,2]
[389571633,1759722654771,-151.0,0.00015521,2]
[389571635,1759722654780,-151.0,0.00015521,2]
[389571637,1759722654789,-151.0,0.00015521,2]
[389571639,1759722654798,-151.0,0.00015521,2]
[389571641,1759722654808,-151.0,0.00015521,2]
[389571643,1759722654817,-151.0,0.00015521,2]
[389571645,1759722654827,-180.494456,0.00015521,2]
[389571647,1759722654836,-220.815724,0.00015521,2]
[389571649,1759722654847,-180.494456,0.00015521,2]
[389571651,1759722654856,-220.815724,0.00015521,2]
[389571653,1759722654867,-180.494456,0.00015521,2]
[389571656,1759722654877,-220.815724,0.00015521,2]
[389571658,1759722654886,-180.494451,0.00015521,2]
[389571660,1759722654896,-220.815733,0.00015521,2]
[389571662,1759722654906,-158.968256,0.00015521,2]
[389571664,1759722654915,-158.968256,0.00015521,2]
[389571666,1759722654924,-151.0,0.00015521,2]
[389571668,1759722654933,-158.968256,0.00015521,2]
[389571670,1759722654942,-151.0,0.00015521,2]
[389571672,1759722654952,-158.96825,0.00015521,2]
[389571674,1759722654961,-151.0,0.00015521,2]
[389571676,1759722654970,-151.0,0.00015521,2]
[389571678,1759722654981,-151.0,0.00015521,2]
[389571680,1759722654994,-151.0,0.00015521,2]
[389571681,1759722655003,-151.0,0.00015521,2]
[389571684,1759722655012,-335.0,0.00015547,2]
[389571685,1759722655022,-500.0,0.00015547,2]
[389571687,1759722655032,-436.0,0.00015547,2]
[389571689,1759722655042,-500.0,0.00015547,2]
[389571692,1759722655051,-162.60687482,0.00015547,2]
[389571693,1759722655066,-500.0,0.00015547,2]
[389571696,1759722655076,-507.0,0.00015547,2]
[389571697,1759722655086,-699.0,0.00015547,2]
[389571699,1759722655095,-661.0,0.00015547,2]
[389571701,1759722655105,-550.0,0.00015547,2]
[389571704,1759722655115,-2288.0,0.00015547,2]
[389571706,1759722655126,-1227.0,0.00015547,2]
[389571708,1759722655138,-200.0,0.00015547,2]
[389571710,1759722655147,-150.0,0.00015547,2]
[389571712,1759722655156,-151.0,0.00015547,2]
[389571714,1759722655165,-151.0,0.00015547,2]
[389571716,1759722655174,-151.0,0.00015547,2]
[389571717,1759722655183,-151.0,0.00015547,2]
[389571719,1759722655192,-152.261027,0.00015547,2]
[389571721,1759722655203,-151.0,0.00015547,2]
[389571724,1759722655213,-151.0,0.00015547,2]
[389571726,1759722655222,-151.0,0.00015547,2]
[389571727,1759722655231,-151.0,0.00015547,2]
[389571728,1759722655240,-151.0,0.00015547,2]
[389571729,1759722655249,-151.0,0.00015547,2]
[389571730,1759722655258,-154.661805,0.00015547,2]
[389571731,1759722655267,-151.0,0.00015547,2]
[389571733,1759722655276,-151.0,0.00015547,2]
[389571735,1759722655285,-269.657941,0.00015547,2]
[389571737,1759722655295,-151.0,0.00015547,2]
[389571739,1759722655304,-165.557681,0.00015547,2]
[389571741,1759722655315,-151.0,0.00015547,2]
[389571743,1759722655324,-154.433276,0.00015547,2]
[389571745,1759722655335,-187.231112,0.00015547,2]
[389571747,1759722655344,-187.231112,0.00015547,2]
[389571749,1759722655353,-187.231112,0.00015547,2]
[389571751,1759722655362,-187.23112,0.00015547,2]
[389571753,1759722655373,-151.0,0.00015547,2]
[389571755,1759722655382,-500.0,0.00015548,2]
[389571756,1759722655391,-4485.69458071,0.00015564,2]
[389571757,1759722655400,-700.0,0.0001557,2]
[389571758,1759722655409,-189.45705251,0.00015597,2]
[389571759,1759722655418,-335.0,0.00015617,2]
[389571760,1759722655427,-239.84119403,0.00015618,2]
[389571761,1759722655436,-179.42620402,0.00015619,2]
[389571762,1759722655446,-1600.0,0.00015625,2]
[389571763,1759722655455,-4830.74801,0.00015641,2]
[389571764,1759722655464,-335.0,0.00015672,2]
[389571765,1759722655474,-299.61678463,0.00015697,2]
[389571766,1759722655483,-150.112,0.00015716,2]
[389571767,1759722655492,-150.0,0.00015716,2]
[389571768,1759722655501,-150.0,0.00015716,2]
[389571769,1759722655510,-150.0,0.00015716,2]
[389571770,1759722655520,-150.0,0.00015716,2]
[389571771,1759722655529,-150.079,0.00015716,2]
[389571772,1759722655537,-150.0,0.00015716,2]
[389571773,1759722655546,-5175.80143928,0.00015717,2]
[389571774,1759722655555,-810.0,0.00015736,2]
[389571775,1759722655564,-3401.0,0.00015736,2]
[389571776,1759722655573,-2046.0,0.00015736,2]
[389571777,1759722655582,-1265.0,0.00015736,2]
[389571778,1759722655591,-570.0,0.00015736,2]
[389571779,1759722655602,-604.0,0.00015736,2]
[389571780,1759722655611,-1586.0,0.00015736,2]
[389571781,1759722655620,-1308.381,0.00015736,2]
[389571782,1759722655629,-815.0,0.00015736,2]
[389571783,1759722655638,-621.0,0.00015736,2]
[389571785,1759722655647,-901.362,0.00015736,2]
[389571786,1759722655656,-6239.0,0.00015736,2]
[389571787,1759722655666,-4117.0,0.00015736,2]
[389571788,1759722655675,-166.66,0.00015752,2]
[389571789,1759722655684,-253.85713347,0.00015763,2]
[389571790,1759722655693,-5520.85486857,0.00015793,2]
[389571791,1759722655703,-465.39,0.00015795,2]
[389571792,1759722655715,-388.0,0.00015797,3]
[389571793,1759722655724,-500.0,0.00015821,2]
[389571794,1759722655733,-436.0,0.00015821,2]
[389571795,1759722655743,-590.88040054,0.00015821,2]
[389571796,1759722655752,-1765.9912747,0.00015821,2]
[389571797,1759722655761,-349.80287011,0.00015821,2]
[389571798,1759722655770,-507.0,0.00015821,2]
[389571799,1759722655779,-699.0,0.00015821,2]
[389571800,1759722655789,-661.0,0.00015821,2]
[389571801,1759722655798,-550.0,0.00015821,2]
[389571802,1759722655807,-2288.0,0.00015821,2]
[389571803,1759722655817,-1227.0,0.00015821,2]
[389571804,1759722655827,-150.0,0.00015821,2]
[389571805,1759722655835,-500.0,0.00015822,2]
[389571806,1759722655845,-189.45705251,0.00015829,2]
[389571807,1759722655854,-5865.90829786,0.0001587,2]
[389571808,1759722655863,-400.0,0.000159,5]
[389571809,1759722655872,-158.50130237,0.000159,2]
[389571810,1759722655881,-5305.0,0.00015925,2]
[389571811,1759722655890,-6210.96172714,0.00015946,2]
[389571812,1759722655899,-3642.106508,0.00015951,2]
[389571813,1759722655908,-198.34137,0.00015951,2]
[389571814,1759722655917,-175.088009,0.00015951,2]
[389571815,1759722655926,-158.146708,0.00015951,2]
[389571816,1759722655936,-2784.101086,0.00015951,2]
[389571817,1759722655945,-478.654317,0.00015951,2]
[389571818,1759722655955,-3072.0,0.0001597,2]
[389571819,1759722655964,-335.0,0.00015982,2]
[389571820,1759722655973,-3600.0,0.00016,3]
[389571821,1759722655984,-504.89298728,0.00016,2]
[389571822,1759722655994,-305.68,0.00016009,2]
[389571823,1759722656003,-340.56,0.00016009,2]
[389571824,1759722656011,-6556.01515643,0.00016022,2]
[389571825,1759722656021,-253.85713347,0.0001605,2]
[389571826,1759722656031,-189.45705251,0.00016061,2]
[389571827,1759722656040,-335.0,0.00016068,2]
[389571828,1759722656049,-465.40614708,0.00016068,2]
[389571829,1759722656061,-1500.0,0.00016068,2]
[389571830,1759722656071,-603.58250258,0.00016068,2]
[389571831,1759722656080,-1500.0,0.00016068,2]
[389571832,1759722656089,-1031.31698428,0.00016068,2]
[389571833,1759722656098,-700.0,0.0001607,2]
[389571834,1759722656107,-500.0,0.00016095,2]
[389571835,1759722656117,-436.0,0.00016095,2]
[389571836,1759722656127,-507.0,0.00016095,2]
[389571837,1759722656136,-699.0,0.00016095,2]
[389571838,1759722656146,-661.0,0.00016095,2]
[389571839,1759722656155,-550.0,0.00016095,2]
[389571840,1759722656165,-2288.0,0.00016095,2]
[389571841,1759722656177,-1227.0,0.00016095,2]
[389571842,1759722656186,-153.3024227,0.00016095,2]
[389571843,1759722656196,-500.0,0.00016096,2]
[389571844,1759722656207,-6901.06858571,0.00016098,2]
[389571845,1759722656216,-156.35336469,0.0001611,2]
[389571846,1759722656227,-294.34854578,0.00016146,7]
[389571847,1759722656236,-340.57,0.00016146,2]
[389571848,1759722656246,-370.68887098,0.0001615,3]
[389571849,1759722656255,-3642.106508,0.0001615,3]
[389571850,1759722656264,-198.34137,0.0001615,3]
[389571851,1759722656273,-175.088009,0.0001615,3]
[389571852,1759722656282,-158.146708,0.0001615,3]
[389571853,1759722656291,-2784.101086,0.0001615,3]
[389571854,1759722656300,-478.654317,0.0001615,3]
[389571855,1759722656310,-156.35336469,0.00016164,2]
[389571856,1759722656319,-296.31,0.00016165,2]
[389571857,1759722656329,-7246.122015,0.00016175,2]
[389571858,1759722656338,-166.66,0.00016225,2]
[389571859,1759722656347,-334.5472959,0.00016231,2]
[389571860,1759722656356,-151.0,0.00016238,2]
[389571861,1759722656365,-386.91388902,0.00016238,2]
[389571862,1759722656375,-23491.03815585,0.00016238,2]
[389571863,1759722656384,-93462.89533241,0.00016238,2]
[389571864,1759722656393,-156.35336469,0.00016247,2]
[389571865,1759722656402,-335.0,0.00016247,2]
[389571866,1759722656411,-7591.17544429,0.00016251,2]
[389571867,1759722656420,-335.0,0.0001626,2]
[389571868,1759722656429,-189.45705251,0.00016293,2]
[389571869,1759722656439,-335.0,0.00016302,2]
[389571870,1759722656448,-7936.22887357,0.00016327,2]
[389571871,1759722656456,-156.35336469,0.00016329,2]
[389571872,1759722656466,-152.56,0.00016331,2]
[389571873,1759722656475,-179.42620402,0.00016338,2]
[389571874,1759722656484,-163.19995036,0.00016338,2]
[389571875,1759722656494,-253.85713347,0.00016338,2]
[389571876,1759722656503,-284.58,0.00016342,2]
[389571877,1759722656512,-500.0,0.00016369,2]
[389571878,1759722656521,-436.0,0.00016369,2]
[389571879,1759722656530,-507.0,0.00016369,2]
[389571880,1759722656539,-699.0,0.00016369,2]
[389571881,1759722656549,-661.0,0.00016369,2]
[389571882,1759722656558,-550.0,0.00016369,2]
[389571883,1759722656567,-2288.0,0.00016369,2]
[389571884,1759722656576,-1227.0,0.00016369,2]
[389571885,1759722656585,-150.0,0.00016369,2]
[389571886,1759722656595,-500.0,0.0001637,2]
[389571887,1759722656604,-700.0,0.0001637,2]
[389571888,1759722656614,-5800.0,0.000164,2]
[389571889,1759722656623,-158.50130237,0.000164,2]
[389571890,1759722656632,-8281.28230286,0.00016404,2]
[389571891,1759722656642,-156.35336469,0.00016411,2]
[389571892,1759722656651,-833.33,0.00016438,2]
[389571893,1759722656660,-833.33,0.00016438,2]
[389571894,1759722656669,-833.33,0.00016438,2]
[389571895,1759722656679,-833.33,0.00016438,2]
[389571896,1759722656688,-833.33,0.00016438,2]
[389571897,1759722656697,-833.33,0.00016438,2]
[389571898,1759722656707,-833.33,0.00016438,2]
[389571899,1759722656716,-833.33,0.00016438,2]
[389571900,1759722656726,-833.33,0.00016438,2]
[389571901,1759722656735,-833.33,0.00016438,2]
[389571902,1759722656745,-833.33,0.00016438,2]
[389571903,1759722656754,-833.33,0.00016438,2]
[389571904,1759722656764,-833.33,0.00016438,2]
[389571905,1759722656773,-833.33,0.00016438,2]
[389571906,1759722656782,-833.33,0.00016438,2]
[389571907,1759722656791,-833.33,0.00016438,2]
[389571908,1759722656800,-833.33,0.00016438,2]
[389571909,1759722656809,-833.33,0.00016438,2]
[389571910,1759722656818,-833.33,0.00016438,2]
[389571911,1759722656827,-833.33,0.00016438,2]
[389571912,1759722656837,-833.33,0.00016438,2]
[389571913,1759722656846,-833.33,0.00016438,2]
[389571914,1759722656855,-833.33,0.00016438,2]
[389571915,1759722656864,-833.41,0.00016438,2]
[389571916,1759722656874,-505.80015808,0.00016438,2]
[389571917,1759722656884,-500.0,0.00016438,2]
[389571918,1759722656894,-368.35941593,0.00016438,2]
[389571919,1759722656903,-500.0,0.00016438,2]
[389571920,1759722656913,-500.0,0.00016438,2]
[389571921,1759722656922,-500.0,0.00016438,2]
[389571922,1759722656931,-500.0,0.00016438,2]
[389571923,1759722656940,-500.0,0.00016438,2]
[389571924,1759722656950,-500.0,0.00016438,2]
[389571925,1759722656959,-500.0,0.00016438,2]
[389571926,1759722656968,-500.0,0.00016438,2]
[389571927,1759722656978,-500.0,0.00016438,2]
[389571928,1759722656991,-500.0,0.00016438,2]
[389571929,1759722657000,-500.0,0.00016438,2]
[389571930,1759722657009,-500.0,0.00016438,2]
[389571931,1759722657019,-500.0,0.00016438,2]
[389571932,1759722657029,-288.25419897,0.00016438,2]
[389571933,1759722657038,-503.44409118,0.00016438,2]
[389571934,1759722657047,-627.13037053,0.00016438,2]
[389571935,1759722657056,-503.67434015,0.00016438,2]
[389571936,1759722657067,-2182.57,0.00016438,2]
[389571937,1759722657077,-2182.57,0.00016438,2]
[389571938,1759722657086,-2182.57,0.00016438,2]
[389571939,1759722657095,-2182.57,0.00016438,2]
[389571940,1759722657104,-2182.57,0.00016438,2]
[389571941,1759722657113,-2182.57,0.00016438,2]
[389571942,1759722657123,-2182.57,0.00016438,2]
[389571943,1759722657132,-2182.57,0.00016438,2]
[389571944,1759722657141,-2182.57,0.00016438,2]
[389571945,1759722657150,-2182.57,0.00016438,2]
[389571946,1759722657159,-2182.57,0.00016438,2]
[389571947,1759722657168,-2182.57,0.00016438,2]
[389571948,1759722657178,-2182.57,0.00016438,2]
[389571949,1759722657187,-2182.57,0.00016438,2]
[389571950,1759722657196,-2182.57,0.00016438,2]
[389571951,1759722657205,-2182.57,0.00016438,2]
[389571952,1759722657214,-2182.57,0.00016438,2]
[389571953,1759722657223,-2182.57,0.00016438,2]
[389571954,1759722657233,-2182.57,0.00016438,2]
[389571955,1759722657242,-2182.57,0.00016438,2]
[389571956,1759722657252,-2182.57,0.00016438,2]
[389571957,1759722657261,-2182.57,0.00016438,2]
[389571958,1759722657271,-2182.57,0.00016438,2]